Cogmind - Beta 13 @@@ ROGUE MODE // 2024.04.07 @ 18:19:23 Player: Waste Result: Self-destructed Performance ------------- Evolutions (3) 1500 Regions Visited (7) 1400 Robots Destroyed (76) 380 Value Destroyed (2090) 2090 Prototype IDs (30) 600 Alien Tech Used (0) 0 Bonus (575) 575 TOTAL SCORE: 6545 Bonus ------- High Alert Combat Kills 77 Follower Combat Kills 198 Aligned with FarCom 300 Cogmind --------- Core Integrity 700/700 Matter 300/300 Energy 290/290 System Corruption 0% Temperature Cool (0) Movement Treading (160) Location -7/Factory Parts ------- > --- POWER (1) -------- Improved Deuterium Engine > --- PROPULSION (4) --- Medium Treads Medium Treads Medium Treads Medium Treads > --- UTILITY (5) ------ Advanced Heat Sink Huge Storage Unit Advanced Targeting Computer Light Armor Plating > --- WEAPON (3) ------- Advanced Beam Cannon Advanced Beam Cannon > --- INVENTORY (25) --- Improved Deuterium Engine Improved Deuterium Engine Improved Deuterium Engine Light Treads Light Treads Light Treads Advanced Treads Improved Heat Sink High-capacity Matter Pod (200) Structural Scanner Experimental Sensor Array Improved Signal Interpreter Heavy Armor Plating Hacking Suite Long-range Tractor Beam Beamcaster Guided Plasma Cannon Improved Assault Rifle Improved Assault Rifle Minigun Mini Grenade Launcher Improved Grenade Launcher Missile Launcher Great Maul Peak State ------------ > --- POWER ------------ Improved Deuterium Engine > --- PROPULSION ------- Medium Treads Medium Treads Medium Treads Medium Treads > --- UTILITY ---------- Advanced Heat Sink Huge Storage Unit Advanced Targeting Computer Improved Light Armor Plating > --- WEAPON ----------- Ion Cannon Ion Cannon > --- INVENTORY -------- Improved Deuterium Engine Improved Deuterium Engine Improved Deuterium Engine Light Treads Light Treads Light Treads Advanced Treads Improved Heat Sink High-capacity Matter Pod Structural Scanner Experimental Sensor Array Improved Signal Interpreter Heavy Armor Plating Hacking Suite Long-range Tractor Beam Shock Rifle Beamcaster Beam Cannon Guided Plasma Cannon Minigun Rocket Launcher Mini Grenade Launcher Mini Grenade Launcher Missile Launcher [Rating: 45] Favorites ----------- Power Ion Engine Engine Ion Engine Propulsion Medium Treads Treads Medium Treads Leg Aluminum Leg Wheel Wheel Utility Huge Storage Unit Device Heat Sink Storage Huge Storage Unit Processor Advanced Targeting Computer Protection Improved Light Armor Plating Weapon Beam Cannon Energy Gun Small Laser Energy Cannon Beam Cannon Ballistic Gun Assault Rifle Ballistic Cannon Battle Cannon Launcher Grenade Launcher Build | -11 -10 -10 -10 -9 -8 -8 -7 ------- Run | Yrd Mat Min Exi Min Mat Sto Fac Slots Evolved 6 | . . . . . 4 . 2 Power . | . . . . . . . . Propulsion 2 | . . . . . 2 . . Utility 3 | . . . . . 2 . 1 Weapon 1 | . . . . . . . 1 Parts Attached 51 | . 12 1 . 4 26 8 . Power 5 | . 1 . . 1 3 . . Engine 5 | . 1 . . 1 3 . . Core . | . . . . . . . . Reactor . | . . . . . . . . Propulsion 21 | . 5 1 . 2 12 1 . Treads 8 | . . . . . 7 1 . Leg 6 | . 1 . . 2 3 . . Wheel 7 | . 4 1 . . 2 . . Hover . | . . . . . . . . Flight . | . . . . . . . . Utility 11 | . 3 . . . 6 2 . Device 3 | . 1 . . . 2 . . Storage 3 | . 2 . . . 1 . . Processor 1 | . . . . . 1 . . Hackware . | . . . . . . . . Protection 4 | . . . . . 2 2 . Artifact . | . . . . . . . . Weapon 14 | . 3 . . 1 5 5 . Energy Gun . | . . . . . . . . Energy Cannon 9 | . 2 . . . 3 4 . Ballistic Gun 2 | . 1 . . . . 1 . Ballistic Cannon 2 | . . . . . 2 . . Launcher 1 | . . . . 1 . . . Special Weapon . | . . . . . . . . Impact Weapon . | . . . . . . . . Slashing Weapon . | . . . . . . . . Piercing Weapon . | . . . . . . . . Special Melee Weapon . | . . . . . . . . Unidentified Prototypes 1 | . . . . . . 1 . Parts Lost 12 | . 2 1 . 2 6 1 . Power 3 | . . . . 1 2 . . Propulsion 7 | . 2 1 . 1 3 . . Utility 1 | . . . . . . 1 . Weapon 1 | . . . . . 1 . . Highest Loss Streak 3 | . 1 1 . 2 3 1 . To Critical Strikes . | . . . . . . . . Average Slot Usage (%) 96 | . 94 97 100 86 98 96 84 Engine 11 | . 14 14 14 14 8 9 7 Treads 10 | . . . . . 13 35 30 Leg 8 | . 4 . . . 19 . . Wheel 11 | . 22 26 28 15 3 . . Device 10 | . 7 14 14 14 9 9 7 Storage 14 | . 15 14 14 14 15 9 7 Processor 1 | . . . . . 1 9 7 Protection 4 | . . . . . 8 6 7 Energy Cannon 17 | . 1 28 28 24 14 17 15 Ballistic Gun 3 | . 26 . . . . . . Ballistic Cannon 1 | . . . . . 2 . . Naked Turns . | . . . . . . . . Heaviest Build 110 | 13 93 92 92 92 110 106 102 Greatest Support 112 | 20 20 26 26 26 112 112 112 Greatest Overweight (x) 9 | . 8 9 3 5 6 1 . Average Overweight (x) 3 | . 4 3 3 4 3 . . Largest Inventory Capacity 25 | . 25 25 25 25 25 25 25 Average Capacity 24 | . 24 25 25 25 25 25 25 Most Carried 25 | . 16 19 21 24 25 25 25 Average Carried 20 | . 11 17 19 20 23 24 25 Final Capacity 25 | 8 25 25 25 25 25 25 25 Final Carried 25 | 6 16 19 21 22 25 25 25 Class Distribution -------------------- 50% | Mutant 42% | Scavenger-Mutant 7% | Commander-Mutant Dominant Class ---------------- Mutant | -10/Materials Scavenger-Mutant | -10/Mines Scavenger-Mutant | -10/Exiles Mutant | -9/Mines Scavenger-Mutant | -8/Materials Commander-Mutant | -8/Storage Mutant | -7/Factory Resources | -11 -10 -10 -10 -9 -8 -8 -7 ----------- Run | Yrd Mat Min Exi Min Mat Sto Fac Matter Collected 1274 | 195 496 20 . 55 433 75 . Remotely . | . . . . . . . . Salvage Created 3198 | . 685 86 . 112 1441 874 . Parts 150 | . 39 2 . 6 56 47 . Haulers Intercepted 8 | . 2 . . . 2 4 . Recyclers Shooed 1 | . . . . . . 1 . Parts Field Recycled . | . . . . . . . . Retrieved Matter . | . . . . . . . . Parts Self-Destructed . | . . . . . . . . Prevented . | . . . . . . . . Kills | -11 -10 -10 -10 -9 -8 -8 -7 ------- Run | Yrd Mat Min Exi Min Mat Sto Fac Combat Hostiles Destroyed 55 | . 14 2 . 5 25 9 . Guns 13 | . 13 . . . . . . Cannons 36 | . 1 2 . 2 23 8 . AOE 5 | . . . . 3 2 . . Classes Destroyed 12 | . 6 . . 1 5 . . Worker 4 | . 1 . . . . 3 . Builder 1 | . . . . . 1 . . Hauler 8 | . 2 . . . 2 4 . Recycler 7 | . 1 . . 1 3 2 . Mechanic 1 | . . . . . 1 . . Watcher 3 | . 1 . . . 2 . . Swarmer 11 | . 6 . . 2 3 . . Grunt 28 | . 8 2 . . 16 2 . Brawler 1 | . . . . . 1 . . Sentry 11 | . . . . . 4 7 . Hunter 1 | . . . . . 1 . . Assembled 3 | . . . . 3 . . . Best Kill Streak 6 | . 4 2 . 2 4 6 . Combat Bots Only 3 | . 3 2 . 2 3 3 . Max Kills in Single Turn 2 | . 1 1 . 1 2 1 . Gunslinging . | . . . . . . . . Exploded 1 | . . . . 1 1 . . Melee . | . . . . . . . . Uniques/NPCs Destroyed . | . . . . . . . . Combat | -11 -10 -10 -10 -9 -8 -8 -7 -------- Run | Yrd Mat Min Exi Min Mat Sto Fac Hostile Shots Fired 273 | . 61 10 . 5 168 29 . Missed 73 | . 17 2 . 2 45 7 . Damage Taken 2804 | . 439 107 . 170 1711 377 . Core 475 | . 114 20 . 77 264 . . Absorbed by Shields . | . . . . . . . . Core Remaining (%) 55 | 100 . . . 15 . 52 . Volleys Fired 213 | . 49 11 . 7 104 42 . Largest 2 | . 2 2 . 2 2 2 . Hottest 136 | . 80 120 . 120 120 136 . Shots Fired 413 | . 98 22 . 10 199 84 . Gun 93 | . 93 . . . . . . Cannon 313 | . 5 22 . 6 196 84 . Launcher 7 | . . . . 4 3 . . Special . | . . . . . . . . Kinetic 126 | . 93 . . . 33 . . Thermal 280 | . 5 22 . 6 163 84 . Explosive 7 | . . . . 4 3 . . Electromagnetic . | . . . . . . . . Robot Hit Streak 23 | . 13 5 . 4 23 9 . Robot Miss Streak 6 | . 5 3 . 1 6 6 . Penetration Max . | . . . . . . . . Secondary Targets 2 | . 2 . . . . . . Max Gunslinging Chain 1 | . 1 . . . . . . Shots Hit Robots 258 | . 64 12 . 4 134 44 . Core Hits 116 | . 32 3 . 7 57 17 . Critical Kills . | . . . . . . . . Critical Parts Destroyed 2 | . 2 . . . . . . Critical Strikes 4 | . 2 . . . 2 . . Destroy 2 | . 2 . . . . . . Blast 2 | . . . . . 2 . . Melee Attacks . | . . . . . . . . Impact . | . . . . . . . . Slashing . | . . . . . . . . Piercing . | . . . . . . . . Sneak Attacks . | . . . . . . . . Combat Hostiles . | . . . . . . . . Follow-up Attacks . | . . . . . . . . Damage Inflicted 5193 | . 749 211 . 286 2927 1020 . Guns 661 | . 661 . . . . . . Cannons 4100 | . 88 211 . 53 2824 924 . Explosions 336 | . . . . 233 103 . . Melee . | . . . . . . . . Ramming 96 | . . . . . . 96 . Kinetic 1086 | . 661 . . . 425 . . Thermal 3675 | . 88 211 . 53 2399 924 . Explosive 336 | . . . . 233 103 . . Electromagnetic . | . . . . . . . . Impact . | . . . . . . . . Slashing . | . . . . . . . . Piercing . | . . . . . . . . Highest Corruption . | . . . . . . . . Average Corruption . | . . . . . . . . Corruption Purged . | . . . . . . . . Corruption Blocked . | . . . . . . . . Overload Shots . | . . . . . . . . Overflow Damage 80 | . . . . 9 50 21 . Projectiles 46 | . . . . . 46 . . Explosions 13 | . . . . 9 4 . . Melee 21 | . . . . . . 21 . Knockbacks 1 | . . . . . 1 . . Impact . | . . . . . . . . Kinetic 1 | . . . . . 1 . . Secondary . | . . . . . . . . Self-Inflicted Damage 37 | . . . . 37 . . . Shots 1 | . . . . 1 . . . Rammed 7 | . . . . . . 7 . Targets Rammed 10 | . . . . . . 10 . Kicked . | . . . . . . . . Crushed 3 | . . . . . . 3 . Highest Temperature 216 | . 17 216 . 60 152 153 . Average Temperature 46 | . 7 107 . 27 43 34 . Received Heat Transfer 1145 | . 177 66 . 20 738 144 . Effects 1 | . . 1 . . . . . Energy Bleed 1 | . . 1 . . . . . Siege Activations . | . . . . . . . . Robots Corrupted . | . . . . . . . . Combat Hostiles . | . . . . . . . . Parts Fried . | . . . . . . . . Impact Corruptions 1 | . . . . . . 1 . Robots Melted 1 | . . . . . . 1 . Combat Hostiles 1 | . . . . . . 1 . Parts Melted 11 | . 1 . . . 6 4 . Heat Transferred 6734 | . 185 444 . 111 4329 1665 . Parts Sabotaged . | . . . . . . . . Parts Stolen . | . . . . . . . . Parts Stripped . | . . . . . . . . Power Chain Reactions . | . . . . . . . . Alert | -11 -10 -10 -10 -9 -8 -8 -7 ------- Run | Yrd Mat Min Exi Min Mat Sto Fac Peak Influence 808 | . 279 107 . 61 327 808 349 Initial 349 | . . 67 . . 2 111 349 Average 135 | . 122 46 . 35 151 262 349 Maximum Alert Level 3 | . 1 . . . 1 3 1 Low Security (%) 75 | . 86 100 . 100 69 44 . Level 1 21 | . 13 . . . 30 39 100 Level 2 1 | . . . . . . 11 . Level 3 . | . . . . . . 4 . Level 4 . | . . . . . . . . Level 5 . | . . . . . . . . High Security . | . . . . . . . . Max Security . | . . . . . . . . Squads Dispatched 6 | . 1 . . . 3 2 . Investigation 4 | . 1 . . . 2 1 . Extermination . | . . . . . . . . Reinforcement 2 | . . . . . 1 1 . Assault . | . . . . . . . . Garrison . | . . . . . . . . Intercept . | . . . . . . . . Searches Triggered . | . . . . . . . . Construction Impeded . | . . . . . . . . Haulers Reinforced . | . . . . . . . . Active Scanning Responses . | . . . . . . . . Cargo Convoy Interrupts . | . . . . . . . . Stealth | -11 -10 -10 -10 -9 -8 -8 -7 --------- Run | Yrd Mat Min Exi Min Mat Sto Fac Distress Signals 6 | . 1 . . . 4 1 . Communications Jammed . | . . . . . . . . Distress Signals . | . . . . . . . . Times Spotted 90 | . 18 2 . 5 44 21 . Peak Tracking Total 7 | . 4 2 . 2 7 5 . Tactical Retreats 6 | . . . . . 3 3 . Traps | -11 -10 -10 -10 -9 -8 -8 -7 ------- Run | Yrd Mat Min Exi Min Mat Sto Fac Traps Triggered 4 | . 1 . . 1 1 1 . Indirectly . | . . . . . . . . Trap Hack Attempts . | . . . . . . . . Triggered . | . . . . . . . . Disarmed . | . . . . . . . . Reprogrammed . | . . . . . . . . Reused . | . . . . . . . . Traps Extracted . | . . . . . . . . Installed . | . . . . . . . . Triggered . | . . . . . . . . Machines | -11 -10 -10 -10 -9 -8 -8 -7 ---------- Run | Yrd Mat Min Exi Min Mat Sto Fac Machines Disabled 3 | . . . . . . 3 . Max in Single Turn 1 | . . . . . . 1 . Machines Repaired . | . . . . . . . . Machines Dismantled . | . . . . . . . . Machines Sabotaged . | . . . . . . . . Overloaded Fab Kills . | . . . . . . . . Hacking | -11 -10 -10 -10 -9 -8 -8 -7 --------- Run | Yrd Mat Min Exi Min Mat Sto Fac Machines Accessed 18 | . 4 1 1 1 4 7 . Terminals 14 | . 4 1 . . 3 6 . Fabricators . | . . . . . . . . Repair Stations . | . . . . . . . . Recycling Units 2 | . . . . . 1 1 . Scanalyzers . | . . . . . . . . Garrison Access . | . . . . . . . . Total Hacks 42 | . 9 3 1 1 10 18 . Successful 25 | . 5 2 1 1 5 11 . Failed 17 | . 4 1 . . 5 7 . Catastrophic 2 | . 2 . . . . . . Database Lockouts . | . . . . . . . . Manual 33 | . 8 3 1 . 7 14 . Terminals 38 | . 9 3 . . 9 17 . Fabricators . | . . . . . . . . Repair Stations . | . . . . . . . . Recycling Units 2 | . . . . . 1 1 . Scanalyzers . | . . . . . . . . Garrison Access . | . . . . . . . . Terminal Hacks 15 | . 3 1 1 1 2 7 . Part Schematic 2 | . . . . . . 2 . Robot Analysis 2 | . 2 . . . . . . Prototype ID Bank 4 | . 1 1 . . 1 1 . Open Door 2 | . . . . 1 . 1 . Recycling Unit Index 2 | . . . . . 1 1 . Locate Traps 1 | . . . . . . 1 . Zone Layout 1 | . . . . . . 1 . Derelict Proto ID Bank 1 | . . . 1 . . . . Fabricator Hacks . | . . . . . . . . Repair Station Hacks . | . . . . . . . . Recycling Unit Hacks . | . . . . . . . . Scanalyzer . | . . . . . . . . Garrison Access Hacks . | . . . . . . . . Unauthorized Hacks 10 | . 2 1 . . 3 4 . Terminals 8 | . 2 1 . . 2 3 . Botnet 8 | . 2 1 . . 2 3 . Fabricators . | . . . . . . . . Repair Stations . | . . . . . . . . Recycling Units 2 | . . . . . 1 1 . Tunnel 2 | . . . . . 1 1 . Scanalyzers . | . . . . . . . . Garrison Access . | . . . . . . . . Data Cores Recovered . | . . . . . . . . Used . | . . . . . . . . Hacking Detections 11 | . 3 1 . . 3 4 . Full Trace Events . | . . . . . . . . Feedback Events . | . . . . . . . . Feedback Blocked . | . . . . . . . . Robot Schematics Acquired . | . . . . . . . . Robots Built . | . . . . . . . . Authchips . | . . . . . . . . Time . | . . . . . . . . Total Robot Build Rating . | . . . . . . . . Part Schematics Acquired 2 | . . . . . . 2 . Parts Built . | . . . . . . . . Authchips . | . . . . . . . . Time . | . . . . . . . . Total Part Build Rating . | . . . . . . . . Parts Repaired . | . . . . . . . . Time . | . . . . . . . . Parts Recycled . | . . . . . . . . Recycled Matter . | . . . . . . . . Retrieved Matter . | . . . . . . . . Retrieved Components . | . . . . . . . . Parts Scanalyzed . | . . . . . . . . Part Schematics Acquired . | . . . . . . . . Parts Damaged . | . . . . . . . . Bothacking | -11 -10 -10 -10 -9 -8 -8 -7 ------------ Run | Yrd Mat Min Exi Min Mat Sto Fac Used RIF Installer . | . . . . . . . . Robots Hacked . | . . . . . . . . Non-combat . | . . . . . . . . Combat . | . . . . . . . . Robot Hacks Applied . | . . . . . . . . Relay Couplers Released . | . . . . . . . . Fabnet Peak Effective % . | . . . . . . . . Robots Rewired . | . . . . . . . . Allies Hacked . | . . . . . . . . Hacks Repelled . | . . . . . . . . Allies | -11 -10 -10 -10 -9 -8 -8 -7 -------- Run | Yrd Mat Min Exi Min Mat Sto Fac Total Allies 13 | . . 3 . . . 10 . Largest Group 10 | . . 3 3 3 . 10 1 Highest-Rated Group 173 | . . 40 40 40 . 173 22 Highest-Rated Ally 29 | . . 16 16 16 . 29 22 Total Orders . | . . . . . . . . Ally Attacks 71 | . . . . 11 . 60 . Total Damage 721 | . . . . 69 . 652 . Kills 9 | . . . . 1 . 8 . Allies Corrupted . | . . . . . . . . Allies Melted 1 | . . . . 1 . . . Intel | -11 -10 -10 -10 -9 -8 -8 -7 ------- Run | Yrd Mat Min Exi Min Mat Sto Fac Robot Analysis Total 2 | . 2 . . . . . . Derelict Logs Recovered 5 | . . 2 . 3 . . . Drone Launches . | . . . . . . . . Drone Recoveries . | . . . . . . . . Exploration | -11 -10 -10 -10 -9 -8 -8 -7 ------------- Run | Yrd Mat Min Exi Min Mat Sto Fac Turns Passed 5064 | . 635 780 368 514 2000 746 21 Spaces Moved 2539 | 1 306 517 272 284 784 362 13 Core . | . . . . . . . . Treads 607 | . . . . . 232 362 13 Legs 233 | 1 26 . . 1 205 . . Wheels 1699 | . 280 517 272 283 347 . . Hover . | . . . . . . . . Flight . | . . . . . . . . Fastest Speed 120 | 120 120 135 135 135 160 160 160 Average Speed 166 | 120 148 142 135 171 200 160 160 Slowest Speed 400 | 120 400 215 135 400 400 240 160 Overloaded Moves . | . . . . . . . . Propulsion Burnouts . | . . . . . . . . Robots Hopped . | . . . . . . . . Cave-ins Triggered . | . . . . . . . . Exploration Rate (%) 48 | 2 39 99 69 63 50 62 1 Regions Visited 7 Branch Regions 4 Pre-discovered Areas 3 | . . 1 . . 1 1 . Known Exits Taken 2 | . . . . . 1 1 . Unknown Exits Taken 5 | 1 1 1 1 1 . . . Scrap Searched 3 | . . 2 . 1 . . . Spaces Dug . | . . . . . . . . Terrain Destroyed 62 | . . . . 26 36 . . Melee . | . . . . . . . . Projectile 9 | . . . . . 9 . . AOE 53 | . . . . 26 27 . . Terrain Rammed . | . . . . . . . . Walls Destroyed . | . . . . . . . . Machines Disabled . | . . . . . . . . Actions | -11 -10 -10 -10 -9 -8 -8 -7 --------- Run | Yrd Mat Min Exi Min Mat Sto Fac Total 2991 | . 394 538 273 303 1030 440 13 Wait 105 | . 18 6 . . 72 9 . Move 2532 | . 305 516 271 283 783 361 13 Hop . | . . . . . . . . Pick Up 45 | . 8 4 2 6 22 3 . Fast Attach 13 | . 3 . . . 4 6 . Attach 18 | . 2 1 . 3 12 . . Detach 3 | . 2 . . . 1 . . Swap 20 | . 7 . . 1 10 2 . Drop 32 | . . . . 3 22 7 . Fire 213 | . 49 11 . 7 104 42 . Melee . | . . . . . . . . Ram . | . . . . . . . . Kick . | . . . . . . . . Crush 10 | . . . . . . 10 . Escape Stasis . | . . . . . . . . Rewire . | . . . . . . . . Trap . | . . . . . . . . Miscellaneous . | . . . . . . . . Route ------- -11/Scrapyard -10/Materials -10/Mines (discovered 4 exits: [*Mat x2] / *Exi / [*Sub]) -10/Exiles (discovered 2 exits: *Min x2) -9/Mines -8/Materials (discovered 3 exits: Fac / *Sto x2) -8/Storage -7/Factory History --------- Turn | Location | Event 1 | -11/Scrapyard | Discovered new exit (range 0) 1 | -11/Scrapyard | Entered Materials 198 | -10/Materials | Discovered new exit (range 8) 309 | -10/Materials | Build established: Mutant 636 | -10/Materials | Entered Mines 716 | -10/Mines | Received a Rocket Launcher from a helpful Derelict 800 | -10/Mines | Core integrity fell below 50% 820 | -10/Mines | Discovered new exit (range 10) 926 | -10/Mines | Learned location of 1 exit from Materials 976 | -10/Mines | Discovered new exit (range 5) 1046 | -10/Mines | A weapon hastily lodged in a ceiling crevice suddenly fell to the ground 1197 | -10/Mines | Build established: Scavenger-Mutant 1205 | -10/Mines | Discovered new exit (range 10) 1217 | -10/Mines | Assisted by bots powering up and referring to "LRC-V3" 1403 | -10/Mines | Deemed a non-threat by the Exiles lab entrance 1405 | -10/Mines | Discovered new exit (range 5) 1416 | -10/Mines | Entered Exiles 1416 | -10/Exiles | Accompanied by 3 allies 1437 | -10/Exiles | Discovered new exit (range 15) 1453 | -10/Exiles | Met 8R-AWN 1473 | -10/Exiles | Met EX-HEX 1508 | -10/Exiles | Met EX-BIN 1524 | -10/Exiles | Aligned with FarCom system 1526 | -10/Exiles | Given EX-Vault access code 1557 | -10/Exiles | Opened EX-Vault 1568 | -10/Exiles | Found Gui. Plasma Cannon 1597 | -10/Exiles | Warned to stay clear of 0b10 Research branches 1636 | -10/Exiles | Met EX-DEC 1772 | -10/Exiles | Discovered new exit (range 10) 1784 | -10/Exiles | Left Exiles lab with Gui. Plasma Cannon 1784 | -10/Exiles | Entered Mines 1784 | -9/Mines | Accompanied by 3 allies 1818 | -9/Mines | Met a Derelict who couldn't figure out how to use a Trap Extractor 1901 | -9/Mines | Learned Materials stockpile data 1931 | -9/Mines | YI-UF0 nonchalantly dropped a Grenade Launcher on the ground 2092 | -9/Mines | Assembled infested the area 2105 | -9/Mines | Build established: Mutant 2138 | -9/Mines | Found a damaged Exp. Sensor Array with a note attached 2142 | -9/Mines | Found Prototype Device 2151 | -9/Mines | Discovered new exit (range 5) 2217 | -9/Mines | Learned Materials stockpile data 2227 | -9/Mines | Core integrity fell below 20% 2298 | -9/Mines | Entered Materials 2298 | -8/Materials | Evolved 4 slots: Propulsion x2, Utility x2 2299 | -8/Materials | Identified exit to Storage 2300 | -8/Materials | Identified exit to Factory 2953 | -8/Materials | Build established: Scavenger-Mutant 3037 | -8/Materials | Lost 3 parts (2n1w) 3523 | -8/Materials | Discovered exit to Storage (range 14) 4123 | -8/Materials | Build established: Mutant 4298 | -8/Materials | Entered Storage 4675 | -8/Storage | Assisted by bots powering up and referring to "LRC-V3" 4964 | -8/Storage | Build established: Commander-Mutant 5012 | -8/Storage | Discovered exit to Factory (range 12) 5044 | -8/Storage | Entered Factory 5044 | -7/Factory | Accompanied by 1 ally 5044 | -7/Factory | Evolved 2 slots: Utility x1, Weapon x1 5061 | -7/Factory | Lost 4 allies 5065 | -7/Factory | Self-destructed Last Messages --------------- 04980_ Slammed into K-01 Serf. 04982_ Crushed K-01 Serf. 04982_ K-01 Serf destroyed. 04986_ K-01 Serf collects debris. 05001_ Y-45 Defender destroyed. 05002_ K-01 Serf collects debris. 05002_ R-06 Scavenger collects Lgt. Treads. 05004_ M-13 Machinist repairs A-02 Transporter. 05005_ K-01 Serf collects debris. 05006_ R-06 Scavenger collects Heat Sink. 05009_ Heat Sink melted. 05009_ Y-45 Defender destroyed. 05012_ EXIT=FOUND: FACTORY 05026_ Lgt. Armor Plating melted. 05026_ Y-45 Defender destroyed. 05038_ A-02 Transporter heat short circuits Transport Network Coupler. PARAMETERS=UTILITY+1,WEAPON+1 LOCATION=FACTORY GOAL=ESCAPE 05044_ Receiving FarCom transmissions... Map ----- +----------------------------------------------------+ | ????????????????????????????????? | | ????????????????????????????????? | | ????????????????????????????????? | | ????????????????????????????????? | | ????????????????????????????????? | | ?????????????????? ???????????? | | ??????????????? ??" ???????????? | | ????????# ??? ??" ???????????? | | ????????# ??? ??" ???????????? | | ????????+ ??? ??" #??????????? | | ????????# ??? ? #??????????? | | ????????# ??" """ #??????????? | | ??????### """ """ #??????????? | | ??????# """ """ #??????????? | | ??????# """ """ #??????????? | | ??????# #??????????? | | ??????# """ """ ########+### | | ??????# """ """ | | ??????# """ """ | | ??????# """ """ | | ??????# | | ??????# | | ?????######+#################+### | | ?????# #?????????????? | | ?????# """ """ #?????????????? | | ?????# @ """ """ #?????????????? | | ?????# """t""" #?????????????? | | ?????# ??????????????? | | ?????# """ """ #?????????????? | | ?????# """ """ #?????????????? | | ?????# """ ""? ??????????????? | | ?????# ! ???????????????? | | ?????# ? ????????????????? | | ?????# ???????????????????? | | ?????# ???????????????????? | | ?????########???????????????????? | | ????????????????????????????????? | | ????????????????????????????????? | | ????????????????????????????????? | | ????????????????????????????????? | | ????????????????????????????????? | | ????????????????????????????????? | | ????????????????????????????????? | | ????????????????????????????????? | | ????????????????????????????????? | | ????????????????????????????????? | | ????????????????????????????????? | | ????????????????????????????????? | | ????????????????????????????????? | | ????????????????????????????????? | +----------------------------------------------------+ Best States ------------- Heat Dissipation 53 Energy Generation 16 Energy Capacity 290 Matter Stores 500 Matter Capacity 500 Sight Range 16 Terrain Scan Density 10 Armor Coverage 150 Evasion (%) 50 Targeting Accuracy 8 Recoil Reduction 4 Item Schematics ----------------- Hvy. Plasma Cannon | -8/Storage | Hacked Hacking Suite | -8/Storage | Hacked Robot Schematics ------------------ None Fabricated ------------ Nothing Alien Tech Used ----------------- None Achievements -------------- None Challenges ------------ None Game ------ Seed NeutrinoImpulseFirepult Manual? 0 Play Time 00:24:37 Cumulative 186.5 hours Start 2024.04.07 @ 17:54:47 End 2024.04.07 @ 18:19:23 Sessions 1 Manual Loads 0 Difficulty Rogue Special Mode None Game No. 253 Rogue 253 Adventurer 0 Explorer 0 Win Type - Total 4 Types 2/1/0/1/0/0/0/0/0 Lore% 68 Gallery% 75 Achievement% 66 Wizard Run 0 Options --------- Layout 0 ASCII 0 Keyboard 0 Movement Numpad Keybinds 0 Fullscreen 1 Font 18/SmallcapsGlow Map View 76x50 Zoom Use 0% Tactical HUD 1 Map Filters NONE Filters NONE Steam 1 RUN: f8df008b-2f34-4f2a-8dcf-07ac222e81f9